Cogmind - Beta 13 @@@ ROGUE MODE // 2024.07.24 @ 00:59:11 Player: BigChungusGaming Result: Destroyed by G-47 Trooper with Particle Gun Performance ------------- Evolutions (1) 500 Regions Visited (2) 400 Robots Destroyed (13) 65 Value Destroyed (401) 401 Prototype IDs (0) 0 Alien Tech Used (0) 0 Bonus (0) 0 TOTAL SCORE: 1366 Bonus ------- None Cogmind --------- Core Integrity 0/400 Matter 300/300 Energy 98/100 System Corruption 0% Temperature Cool (9) Movement Core (50) Location -9/Materials Parts ------- > --- POWER (1) -------- (None) > --- PROPULSION (2) --- (None) > --- UTILITY (3) ------ Improved Heat Sink Terrain Scanner > --- WEAPON (3) ------- (None) > --- INVENTORY (5) ---- Improved Ion Engine Light Treads Wheel Wheel Seismic Detector Peak State ------------ > --- POWER ------------ Light Ion Engine > --- PROPULSION ------- Aluminum Leg > --- UTILITY ---------- Improved Heat Sink Small Storage Unit Terrain Scanner > --- WEAPON ----------- Small Laser Beam Cannon > --- INVENTORY -------- Light Treads Light Treads Wheel Wheel Structural Scanner Seismic Detector [Rating: 9] Favorites ----------- Power Ion Engine Engine Ion Engine Propulsion Light Treads Treads Light Treads Leg Aluminum Leg Utility Small Storage Unit Device Terrain Scanner Storage Small Storage Unit Weapon Medium Laser Energy Gun Medium Laser Energy Cannon Beam Cannon Build | -11 -10 -9 ------- Run | Yrd Mat Mat Slots Evolved 2 | . . 2 Power . | . . . Propulsion . | . . . Utility 1 | . . 1 Weapon 1 | . . 1 Parts Attached 19 | 6 10 3 Power 2 | 1 . 1 Engine 2 | 1 . 1 Core . | . . . Reactor . | . . . Propulsion 4 | 2 2 . Treads 2 | 2 . . Leg 2 | . 2 . Wheel . | . . . Hover . | . . . Flight . | . . . Utility 6 | 1 3 2 Device 5 | . 3 2 Storage 1 | 1 . . Processor . | . . . Hackware . | . . . Protection . | . . . Artifact . | . . . Weapon 7 | 2 5 . Energy Gun 5 | 2 3 . Energy Cannon 2 | . 2 . Ballistic Gun . | . . . Ballistic Cannon . | . . . Launcher . | . . . Special Weapon . | . . . Impact Weapon . | . . . Slashing Weapon . | . . . Piercing Weapon . | . . . Special Melee Weapon . | . . . Unidentified Prototypes . | . . . Parts Lost 9 | . 2 7 Power 2 | . . 2 Propulsion 2 | . . 2 Utility 1 | . . 1 Weapon 4 | . 2 2 Highest Loss Streak 4 | . 1 4 To Critical Strikes . | . . . Average Slot Usage (%) 80 | . 94 61 Engine 10 | . 14 6 Treads 10 | . 18 . Leg 9 | . 9 9 Device 15 | . 11 22 Storage 12 | . 14 10 Energy Gun 14 | . 20 6 Energy Cannon 5 | . 5 6 Naked Turns . | . . . Heaviest Build 16 | 14 16 16 Greatest Support 40 | 40 40 20 Greatest Overweight (x) 3 | . . 3 Average Overweight (x) . | . . 1 Largest Inventory Capacity 8 | 8 8 8 Average Capacity 7 | 7 8 7 Most Carried 8 | 6 8 7 Average Carried 6 | 4 7 6 Final Capacity 8 | 8 8 5 Final Carried 7 | 6 7 5 Class Distribution -------------------- 100% | Mutant Dominant Class ---------------- Mutant | -10/Materials Mutant | -9/Materials Resources | -11 -10 -9 ----------- Run | Yrd Mat Mat Matter Collected 408 | 200 135 73 Remotely . | . . . Salvage Created 472 | . 285 187 Parts 24 | . 20 4 Haulers Intercepted . | . . . Recyclers Shooed . | . . . Parts Field Recycled . | . . . Retrieved Matter . | . . . Parts Self-Destructed . | . . . Prevented . | . . . Kills | -11 -10 -9 ------- Run | Yrd Mat Mat Combat Hostiles Destroyed 10 | . 6 4 Guns 3 | . 2 1 Cannons 5 | . 2 3 AOE 1 | . 1 . Classes Destroyed 4 | . 3 1 Worker 1 | . 1 . Builder 2 | . 2 . Grunt 9 | . 6 3 Sentry 1 | . . 1 Best Kill Streak 5 | . 5 2 Combat Bots Only 3 | . 3 2 Max Kills in Single Turn 2 | . 2 1 Gunslinging . | . . . Exploded 1 | . 1 . Melee . | . . . Uniques/NPCs Destroyed . | . . . Combat | -11 -10 -9 -------- Run | Yrd Mat Mat Hostile Shots Fired 164 | . 69 95 Missed 50 | . 27 23 Damage Taken 1482 | . 534 948 Core 450 | . 50 400 Absorbed by Shields . | . . . Core Remaining (%) 90 | 100 80 . Volleys Fired 55 | . 33 22 Largest 2 | . 2 2 Hottest 100 | . 100 100 Shots Fired 90 | . 48 42 Gun 63 | . 43 20 Cannon 27 | . 5 22 Launcher . | . . . Special . | . . . Kinetic . | . . . Thermal 77 | . 35 42 Explosive . | . . . Electromagnetic 13 | . 13 . Robot Hit Streak 7 | . 7 6 Robot Miss Streak 3 | . 2 3 Penetration Max . | . . . Secondary Targets . | . . . Shots Hit Robots 60 | . 34 26 Core Hits 22 | . 13 9 Critical Kills . | . . . Critical Parts Destroyed . | . . . Critical Strikes 1 | . 1 . Burn 1 | . 1 . Melee Attacks . | . . . Impact . | . . . Slashing . | . . . Piercing . | . . . Sneak Attacks . | . . . Combat Hostiles . | . . . Follow-up Attacks . | . . . Damage Inflicted 1018 | . 629 389 Guns 554 | . 433 121 Cannons 333 | . 71 262 Explosions 121 | . 121 . Melee . | . . . Ramming 10 | . 4 6 Kinetic . | . . . Thermal 862 | . 479 383 Explosive . | . . . Electromagnetic 146 | . 146 . Impact . | . . . Slashing . | . . . Piercing . | . . . Highest Corruption . | . . . Average Corruption . | . . . Corruption Purged . | . . . Corruption Blocked . | . . . Overload Shots . | . . . Overflow Damage . | . . . Projectiles . | . . . Explosions . | . . . Melee . | . . . Knockbacks . | . . . Impact . | . . . Kinetic . | . . . Secondary . | . . . Self-Inflicted Damage 17 | . 15 2 Shots 1 | . 1 . Rammed 2 | . . 2 Targets Rammed 3 | . 1 2 Kicked 1 | . 1 . Crushed . | . . . Highest Temperature 466 | . 466 402 Average Temperature 197 | . 189 209 Received Heat Transfer 783 | . 321 462 Effects 15 | . 7 8 Shutdowns 4 | . 3 1 Energy Bleed 2 | . 1 1 Interference 5 | . 2 3 Matter Decay 1 | . . 1 Short Circuit 1 | . . 1 Damage (minor) 2 | . 1 1 Siege Activations . | . . . Robots Corrupted . | . . . Combat Hostiles . | . . . Parts Fried . | . . . Impact Corruptions . | . . . Robots Melted 1 | . 1 . Combat Hostiles 1 | . 1 . Parts Melted 2 | . . 2 Heat Transferred 2053 | . 1223 830 Parts Sabotaged . | . . . Parts Stolen . | . . . Parts Stripped . | . . . Power Chain Reactions 1 | . 1 . Alert | -11 -10 -9 ------- Run | Yrd Mat Mat Peak Influence 161 | . 161 122 Initial . | . . . Average 40 | . 21 85 Maximum Alert Level . | . . . Low Security (%) 100 | 100 100 100 Level 1 . | . . . Level 2 . | . . . Level 3 . | . . . Level 4 . | . . . Level 5 . | . . . High Security . | . . . Max Security . | . . . Squads Dispatched 2 | . 2 . Investigation . | . . . Extermination . | . . . Reinforcement 2 | . 2 . Assault . | . . . Garrison . | . . . Intercept . | . . . Searches Triggered . | . . . Construction Impeded . | . . . Haulers Reinforced . | . . . Active Scanning Responses . | . . . Cargo Convoy Interrupts . | . . . Stealth | -11 -10 -9 --------- Run | Yrd Mat Mat Distress Signals 3 | . 1 2 Communications Jammed . | . . . Distress Signals . | . . . Times Spotted 26 | . 11 15 Peak Tracking Total 8 | . 5 8 Tactical Retreats . | . . . Traps | -11 -10 -9 ------- Run | Yrd Mat Mat Traps Triggered . | . . . Indirectly . | . . . Trap Hack Attempts . | . . . Triggered . | . . . Disarmed . | . . . Reprogrammed . | . . . Reused . | . . . Traps Extracted . | . . . Installed . | . . . Triggered . | . . . Machines | -11 -10 -9 ---------- Run | Yrd Mat Mat Machines Disabled . | . . . Max in Single Turn . | . . . Machines Repaired . | . . . Machines Dismantled . | . . . Machines Sabotaged . | . . . Overloaded Fab Kills . | . . . Hacking | -11 -10 -9 --------- Run | Yrd Mat Mat Machines Accessed 2 | . 1 1 Terminals 2 | . 1 1 Fabricators . | . . . Repair Stations . | . . . Recycling Units . | . . . Scanalyzers . | . . . Garrison Access . | . . . Total Hacks 3 | . 2 1 Successful 3 | . 2 1 Failed . | . . . Catastrophic . | . . . Database Lockouts . | . . . Manual . | . . . Terminals 3 | . 2 1 Fabricators . | . . . Repair Stations . | . . . Recycling Units . | . . . Scanalyzers . | . . . Garrison Access . | . . . Terminal Hacks 3 | . 2 1 Record 1 | . . 1 Robot Analysis 1 | . 1 . Dispatch Records 1 | . 1 . Fabricator Hacks . | . . . Repair Station Hacks . | . . . Recycling Unit Hacks . | . . . Scanalyzer . | . . . Garrison Access Hacks . | . . . Unauthorized Hacks . | . . . Terminals . | . . . Fabricators . | . . . Repair Stations . | . . . Recycling Units . | . . . Scanalyzers . | . . . Garrison Access . | . . . Data Cores Recovered . | . . . Used . | . . . Hacking Detections 1 | . 1 . Full Trace Events . | . . . Feedback Events . | . . . Feedback Blocked . | . . . Robot Schematics Acquired . | . . . Robots Built . | . . . Authchips . | . . . Time . | . . . Total Robot Build Rating . | . . . Part Schematics Acquired . | . . . Parts Built . | . . . Authchips . | . . . Time . | . . . Total Part Build Rating . | . . . Parts Repaired . | . . . Time . | . . . Parts Recycled . | . . . Recycled Matter . | . . . Retrieved Matter . | . . . Retrieved Components . | . . . Parts Scanalyzed . | . . . Part Schematics Acquired . | . . . Parts Damaged . | . . . Bothacking | -11 -10 -9 ------------ Run | Yrd Mat Mat Used RIF Installer . | . . . Robots Hacked . | . . . Non-combat . | . . . Combat . | . . . Robot Hacks Applied . | . . . Relay Couplers Released . | . . . Fabnet Peak Effective % . | . . . Robots Rewired . | . . . Allies Hacked . | . . . Hacks Repelled . | . . . Allies | -11 -10 -9 -------- Run | Yrd Mat Mat Total Allies . | . . . Largest Group . | . . . Highest-Rated Group . | . . . Highest-Rated Ally . | . . . Total Orders . | . . . Ally Attacks . | . . . Total Damage . | . . . Kills . | . . . Allies Corrupted . | . . . Allies Melted . | . . . Intel | -11 -10 -9 ------- Run | Yrd Mat Mat Robot Analysis Total 1 | . 1 . Derelict Logs Recovered . | . . . Drone Launches . | . . . Drone Recoveries . | . . . Exploration | -11 -10 -9 ------------- Run | Yrd Mat Mat Turns Passed 1124 | 211 518 395 Spaces Moved 644 | 129 290 225 Core 134 | 9 . 125 Treads 292 | 120 172 . Legs 218 | . 118 100 Wheels . | . . . Hover . | . . . Flight . | . . . Fastest Speed 50 | 50 120 50 Average Speed 145 | 152 143 142 Slowest Speed 200 | 160 160 200 Overloaded Moves . | . . . Propulsion Burnouts . | . . . Robots Hopped . | . . . Cave-ins Triggered . | . . . Exploration Rate (%) 22 | 8 42 17 Regions Visited 2 Branch Regions . Pre-discovered Areas . | . . . Known Exits Taken . | . . . Unknown Exits Taken 2 | 1 1 . Scrap Searched . | . . . Spaces Dug . | . . . Terrain Destroyed 5 | . 5 . Melee . | . . . Projectile . | . . . AOE 5 | . 5 . Terrain Rammed . | . . . Walls Destroyed . | . . . Machines Disabled . | . . . Actions | -11 -10 -9 --------- Run | Yrd Mat Mat Total 736 | 141 340 255 Wait 1 | . . 1 Move 642 | 128 289 225 Hop . | . . . Pick Up 13 | 7 4 2 Fast Attach 8 | 5 3 . Attach 5 | 1 2 2 Detach . | . . . Swap 6 | . 5 1 Drop 3 | . 3 . Fire 55 | . 33 22 Melee . | . . . Ram 2 | . . 2 Kick 1 | . 1 . Crush . | . . . Escape Stasis . | . . . Rewire . | . . . Trap . | . . . Miscellaneous . | . . . Route ------- -11/Scrapyard -10/Materials -9/Materials History --------- Turn | Location | Event 30 | -11/Scrapyard | Discovered new exit (range 16) 212 | -11/Scrapyard | Entered Materials 325 | -10/Materials | Build established: Mutant 674 | -10/Materials | Discovered new exit (range 8) 730 | -10/Materials | Entered another Materials area 730 | -9/Materials | Evolved 2 slots: Utility x1, Weapon x1 1016 | -9/Materials | Lost 4 parts (1p1n2w) 1048 | -9/Materials | Core integrity fell below 50% 1098 | -9/Materials | Core integrity fell below 20% 1125 | -9/Materials | Destroyed by G-47 Trooper with Particle Gun Last Messages --------------- category to further limit the potential for abuse. Acquired Imp. Ion Engine. Sml. Laser destroyed. Critical hit (Burn: +37). Aluminum Leg destroyed. Beam Cannon destroyed. Critical hit (Burn: +37). Lgt. Ion Engine destroyed. K-01 Serf collects debris. Slammed into K-01 Serf. K-01 Serf cleans the Repair Station. Slammed into K-01 Serf. W-16 Scout sends out distress signal. Sml. Storage Unit destroyed. M-13 Machinist repairs G-34 Mercenary. W-16 Scout sends out distress signal. C-30 ARC bursts open, deploying its payload. G-47 Trooper unfolds itself. G-34 Mercenary unfolds itself. Map ----- +----------------------------------------------------+ | ?????????????????????????????????????????????????? | | ?????????????????????????????????????????????????? | | ?????????????????????????????????????????????????? | | ?????????????????????????????????????????????????? | | ?????????????????????????????????????????????????? | | ?????????????????????????????????????????????????? | | ?????????????????????????????????????????????????? | | ?????????????????????????????????????????????????? | | ?????????????????????????????????????????????????? | | ?????????????????????????????????????????????????? | | ?????????????????????????????????????????????????? | | ?????????????????????????#???????????????????????? | | ????????????????????????? ???????????????????????? | | ????????????????????????? ???????????????????????? | | ????????????????????????? ???????????????????????? | | ????????????????????????? ???????????????????????? | | ?????????????????????????a???????????????????????? | | ????????????????????????# #??????????????????????? | | ????????????????????????# #??????????????????????? | | ????????????????????????# #??????????????????????? | | ????????????????????????# #??????????????????????? | | ????????????????????????# #??????????????????????? | | ????????????????????????# #??????????????????????? | | ????????????????????????# #??????????????????????? | | ????????????????????????# #??????????????????????? | | ????????????????????????#@#??? ??????????????????? | | ????????????????????????# #??????????????????????? | | ????????????????????????# #??????????? ??????????? | | ????????????????????????# #????????? ?????????? | | ??????????????########### ####### #????????? | | ??????????????# #????????? | | ??????????????# ^ #????????? | | ??????????????# ### ####???????????? | | ??????????????????# gg####### T#?????????????? | | ??????????????????# %# # ???????????????? | | ??????????????????# + [ # ???????????????? | | ??????????????????# # # ??#????????????? | | ??????????????? ??##+#### # "" # ???????????????? | | ??????????????? ????????# # "T # #??????????????? | | ??????????????? ?? ?????# # "" # #??????????????? | | ??????????????? ?? ?????# # # /??????????????? | | ??????????????? ??????? # ##/#### #??????????????? | | ??????????????? ????????# ## #??# #??????????????? | | ??????????#???? ????????# ## #??# #??????????????? | | ???????????#?## #?#???#?# ## #??# #?????#?#??????? | | ???????#???#?## #???????# ## #??# #######?????#??? | | ??????????????# #???????# ## #??# #????????? | | ??????????????# #???#?###/##+#### ##### #?????#??? | | ??????????????# #???????# # #???# #????????? | | ???????#??????# #??????## ## #???# #????????? | +----------------------------------------------------+ Best States ------------- Heat Dissipation 42 Energy Generation 10 Energy Capacity 250 Matter Stores 300 Matter Capacity 300 Sight Range 16 Terrain Scan Range 14 Terrain Scan Density 10 ECM Strength 1 Evasion (%) 55 Recoil Reduction 2 Item Schematics ----------------- None Robot Schematics ------------------ None Fabricated ------------ Nothing Alien Tech Used ----------------- None Achievements -------------- None Challenges ------------ None Game ------ Seed FlakDeliveryPropulsion Manual? 0 Play Time 00:11:03 Cumulative 7.8 hours Start 2024.07.24 @ 00:50:43 End 2024.07.24 @ 00:59:11 Sessions 1 Manual Loads 0 Difficulty Rogue Special Mode None Game No. 11 Rogue 11 Adventurer 0 Explorer 0 Win Type - Total 0 Types 0/0/0/0/0/0/0/0/0 Lore% 16 Gallery% 14 Achievement% 14 Wizard Run 0 Options --------- Layout 1 ASCII 0 Keyboard 0 Movement Arrows Keybinds 0 Fullscreen 1 Font 32/SmallcapsGlow Map View 50x35 Zoom Use 0% Tactical HUD 0 Map Filters NONE Filters NONE Steam 1 RUN: 1be3e37c-c7de-4cc6-a64d-71742b296f56